[Event "Oberliga Wuerttemberg 2023-24"]
[Site "Wuerttemberg"]
[Date "2024.04.14"]
[Round "9.37"]
[White "Hoenick, Andreas"]
[Black "Einwiller, Dieter"]
[Result "1-0"]
[ECO "D52"]
[WhiteElo "2101"]
[BlackElo "1989"]
[Annotator "NA RC"]
[PlyCount "57"]
[EventDate "2024.03.14"]
[EventType "team-tourn"]
[EventCountry "GER"]
[SourceTitle "playchess.com"]
[Source "ChessBase"]
[SourceQuality "1"]
[TimeControl "40/5400+30:1800+30"]

1. d4 {[%emt 0:00:04]} d5 {[%emt 0:00:16]} 2. c4 {[%emt 0:00:04]} c6 {[%emt 0:00:20]} 3. Nf3 {[%emt 0:00:25]} e6 {[%emt 0:00:56]} 4. Nc3 {[%emt 0:00:30]} Nf6 {[%emt 0:02:39]} 5. Bg5 {[%emt 0:01:04]} Nbd7 {[%emt 0:01:29]} 6. e3 {[%emt 0:00:27]} Qa5 {[%emt 0:01:03]} 7. cxd5 {[%emt 0:00:23]} exd5 {[%emt 0:05:34]} 8. Rc1 {[%emt 0:06:56]} Ne4 {[%emt 0:05:06]} 9. Bf4 {[%emt 0:00:53]} Bd6 {[%emt 0:02:05]} 10. Bxd6 {[%emt 0:02:04]} Nxd6 {[%emt 0:00:32]} 11. Bd3 {[%emt 0:03:15]} Nf6 {[%emt 0:01:31]} 12. Qc2 {[%emt 0:05:15]} g6 {[%emt 0:04:09]} 13. O-O {[%emt 0:06:45]} Bf5 {[%emt 0:03:42]} 14. Bxf5 {[%emt 0:01:34]} gxf5 {[%emt 0:03:37]} 15. Ne5 {[%emt 0:03:08]} Rg8 {[%emt 0:07:29]} 16. b4 {[%emt 0:08:26]} Qd8 {[%emt 0:03:07]} 17. f3 {[%emt 0:02:42]} Nh5 {[%emt 0:03:48]} 18. b5 {[%emt 0:06:37]} f6 {[%emt 0:06:48]} 19. Nd3 {[%emt 0:10:31]} Nc4 {[%emt 0:01:44]} 20. Rfe1 {[%emt 0:00:46]} Kf7 {[%emt 0:03:05]} 21. bxc6 {[%emt 0:07:44]} bxc6 {[%emt 0:01:01]} 22. Nc5 {[%emt 0:00:19]} Qc8 {[%emt 0:03:12]} 23. Qf2 {[%emt 0:04:48]} Rg5 {[%emt 0:05:38]} 24. Rb1 {[%emt 0:05:42]} Kg8 {[%emt 0:06:30]} 25. Ne2 {[%emt 0:07:44]} Rb8 {[%emt 0:02:46]} 26. Nf4 {[%emt 0:06:22]} Rb6 {[%emt 0:06:21]} 27. h4 {[%emt 0:04:23]} Nxf4 {[%emt 0:03:26]} 28. hxg5 {[%emt 0:00:06]} Ne6 {[%emt 0:02:09]} 29. gxf6 {[%emt 0:00:28]} 1-0

[Event "Oberliga Wuerttemberg 2023-24"]
[Site "Wuerttemberg"]
[Date "2024.04.14"]
[Round "9.38"]
[White "Janasik, Gerhard"]
[Black "Weiss, Andreas"]
[Result "1/2-1/2"]
[ECO "B40"]
[WhiteElo "1938"]
[BlackElo "2043"]
[Annotator "TA"]
[PlyCount "125"]
[EventDate "2024.03.14"]
[EventType "team-tourn"]
[EventCountry "GER"]
[SourceTitle "playchess.com"]
[Source "ChessBase"]
[SourceQuality "1"]
[TimeControl "40/5400+30:1800+30"]

{[%evp 10,125,63,35,50,10,55,11,20,25,20,8,33,37,53,-12,52,0,5,6,12,0,16,-7,-4,-20,-20,-20,-20,-20,-13,-19,-16,-19,-14,-21,-14,-22,-10,-15,-8,-10,-12,-10,-6,-114,-19,-46,-49,-56,-57,-56,-45,-56,-35,-29,0,0,0,0,0,0,0,0,0,0,0,0,0,0,0,-78,0,0,0,0,0,0,0,0,0,0,0,-8,-8,-8,-8,-8,-8,-8,-8,-8,-8,-8,-8,-29971,-29970,-29971,0,0,0,-8,-8,-8,0,0,0,0,0,0,0,0,8,8,8,8,8,-8]} 1. e4 {[%emt 0:00:18]} c5 {[%emt 0:00:03]} 2. Nf3 {[%emt 0:00:25]} e6 {[%emt 0:00:05]} 3. g3 {[%emt 0:00:59]} a6 {[%emt 0:02:48]} 4. Bg2 {[%emt 0:01:10]} b5 {[%emt 0:00:39]} 5. O-O {[%emt 0:01:10]} Bb7 {[%emt 0:00:11]} 6. d3 {[%emt 0:08:14] B40: Sicilian: 2...e6, Unusual lines.} d6 {[%emt 0:14:18]} 7. Nbd2 {[%emt 0:03:03]} g6 {[%emt 0:06:42]} 8. c3 {[%emt 0:03:53]} Bg7 {[%emt 0:00:59]} 9. d4 $146 {[%emt 0:05:44]} ({Predecessor:} 9. h4 Ne7 10. h5 Nbc6 11. Re1 O-O 12. Nf1 h6 13. N3h2 Kh7 14. g4 g5 15. Ng3 {1-0 Shermuhammadov,S (1733)-Chinguun,S (2032) Asia-ch U12 Ulaanbaatar 2016 (4)}) 9... Nd7 {[%emt 0:03:43]} 10. Re1 {[%emt 0:07:39]} e5 {[%emt 0:14:49]} 11. a4 {[%emt 0:15:26]} Ngf6 {[%emt 0:03:16]} 12. Bf1 {[%emt 0:09:51]} (12. d5 $14) 12... Qb6 {[%emt 0:15:39]} (12... exd4 $11 13. cxd4 O-O) 13. axb5 {[%emt 0:11:37]} (13. b4 $14) 13... axb5 $11 {[%emt 0:00:09]} 14. Rxa8+ {[%emt 0:00:01]} Bxa8 {[%emt 0:00:06]} 15. d5 {[%emt 0:09:25]} O-O {[%emt 0:00:32]} 16. c4 {[%emt 0:00:38]} b4 {[%emt 0:02:19]} 17. Bd3 {[%emt 0:01:20]} Bb7 {[%emt 0:09:53]} 18. Nf1 {[%emt 0:01:13]} Ra8 {[%emt 0:00:27]} 19. Kg2 {[%emt 0:01:40]} Nf8 {[%emt 0:00:23]} 20. Ne3 {[%emt 0:04:55]} Bc8 {[%emt 0:00:13]} (20... Ra2 {seems wilder.} 21. b3 Bc8 22. h3 Qb7) 21. h3 {[%emt 0:01:02]} Bd7 {[%emt 0:00:43]} (21... Ra2 {is interesting.} 22. b3 Qb7 23. Nc2 N8d7) 22. Kh2 {[%emt 0:02:52]} Qd8 {[%emt 0:03:28]} 23. Ng1 {[%emt 0:03:32]} Bh6 {[%emt 0:02:11]} 24. f3 {[%emt 0:02:25]} Ra1 {[%emt 0:05:02]} 25. Qe2 {[%emt 0:01:37]} Nh5 {[%emt 0:02:32]} 26. Bd2 {[%emt 0:00:41]} Ra2 {[%emt 0:01:39]} 27. Bc1 {[%emt 0:00:05]} (27. Rb1 $11 {keeps the balance.}) 27... Ng7 {[%emt 0:03:46]} (27... f5 $1 $17 {[%cal Rf5f4] White must now prevent ...f4.} 28. exf5 gxf5) 28. Rf1 {[%emt 0:00:32]} f5 {[%emt 0:02:45]} 29. f4 {[%emt 0:00:25]} exf4 {[%emt 0:00:31]} 30. gxf4 {[%emt 0:00:10]} fxe4 {[%emt 0:02:36]} 31. Bxe4 {[%emt 0:00:02]} Nf5 {[%emt 0:00:27]} 32. Bxf5 {[%emt 0:01:25]} Bxf5 {[%emt 0:00:07]} 33. Nxf5 {[%emt 0:00:12]} gxf5 {[%emt 0:00:01]} 34. Nf3 {[%emt 0:00:25]} Qf6 {[%emt 0:01:29]} 35. Ng5 {[%emt 0:00:20]} Bg7 {[%emt 0:00:49]} 36. Rg1 {[%emt 0:00:15]} Ra7 {[%emt 0:00:50]} 37. Re1 {[%emt 0:02:01]} h6 {[%emt 0:00:38]} 38. Nf3 {[%emt 0:00:17]} Qf7 {[%emt 0:00:28]} 39. Qc2 {[%emt 0:01:15]} Re7 {[%emt 0:00:51]} 40. Qd1 {[%emt 0:01:39]} (40. Re2 $11) 40... Rxe1 {[%emt 0:01:01]} ({Black should try} 40... Ng6 $1 $17 41. Qd3 Rxe1 42. Nxe1 Nh4) 41. Qxe1 $11 {[%emt 0:30:03]} Bf6 {[%emt 0:02:11]} 42. b3 {[%emt 0:00:00]} Qe7 {[%emt 0:03:52]} 43. Qxe7 {[%emt 0:00:00]} Bxe7 {[%emt 0:00:43]} 44. Bb2 {[%emt 0:00:00]} Kf7 {[%emt 0:00:07]} 45. Kg3 {[%emt 0:00:00]} Ng6 {[%emt 0:03:04]} 46. h4 {[%emt 0:00:00]} h5 {[%emt 0:07:42]} 47. Ng5+ {[%emt 0:00:00]} Bxg5 {[%emt 0:00:07]} 48. fxg5 {[%emt 0:00:00]} f4+ {[%emt 0:03:28]} 49. Kf3 {[%emt 0:00:00]} Nxh4+ {[%emt 0:00:35]} 50. Kxf4 {[%emt 0:00:00]} Kg6 {[%emt 0:02:33]} 51. Bf6 {[%emt 0:00:00]} Nf5 {[%emt 0:00:53]} 52. Bb2 $2 {[%emt 0:00:00][%mdl 8192]} (52. Kf3 $11) 52... h4 $1 {[%emt 0:07:07]} 53. Kg4 {[%emt 0:00:00] [#]} h3 $2 {[%emt 0:00:11]} (53... Nd4 $1 {[%mdl 512] mates} 54. Kxh4 (54. Bc1 Nxb3) 54... Nxb3 55. Kh3 Nd2 (55... Kxg5 $2 56. Bh8 $19) 56. Bf6 b3 (56... Nxc4 $2 57. Kg2 $19) 57. Kg2 Nxc4 58. Kf3 b2 59. Bxb2 Nxb2 60. Ke3 Kxg5 61. Kd2 Na4 62. Kd3 Kf4 63. Kc4 Ke4 64. Kb5 Nc3+ 65. Kc4 Nxd5 66. Kb3 Kd3 67. Ka3 c4 68. Ka4 c3 69. Kb5 c2 70. Kc6 Kc4 (70... c1=B $2 71. Kxd6 Kd4 72. Kc6 $19) 71. Kb7 c1=Q (71... c1=B {gets mated.} 72. Kc6 Bf4 73. Kb7 Kc5 74. Kc8 Ne3 75. Kd7 d5 76. Ke6 d4 77. Kf7 d3 78. Kg8 d2 79. Kg7 d1=Q 80. Kg6 Qd6+ 81. Kf7 Nf5 82. Kg8 Qg6+ 83. Kh8 Qg7#) 72. Kb8 Qb2+ 73. Kc8 Qg7 74. Kd8 Qc7+ 75. Ke8 Qe7#) 54. Kxh3 $11 {[%emt 0:00:24]} Kxg5 {[%emt 0:00:03]} 55. Bc1+ {[%emt 0:02:47]} Kg6 {[%emt 0:00:43]} 56. Bf4 {[%emt 0:00:33]} Kf6 {[%emt 0:00:44]} 57. Kg4 {[%emt 0:01:01]} Nd4 {[%emt 0:01:37]} 58. Bxd6 {[%emt 0:00:13]} Nxb3 {[%emt 0:00:04]} 59. Kf4 {[%emt 0:00:46]} Nd2 {[%emt 0:01:37]} 60. Bxc5 {[%emt 0:01:27]} Nxc4 {[%emt 0:00:06]} 61. Bxb4 {[%emt 0:00:42]} Nb6 {[%emt 0:00:05]} (61... Kf7 $5) 62. Ke4 $1 {[%emt 0:00:40]} Nxd5 {[%emt 0:00:05]} 63. Bc3+ {[%emt 0:01:19]} 1/2-1/2

[Event "Oberliga Wuerttemberg 2023-24"]
[Site "Wuerttemberg"]
[Date "2024.04.14"]
[Round "9.39"]
[White "Lang, Thomas"]
[Black "Schubert, Martin"]
[Result "1/2-1/2"]
[ECO "C56"]
[WhiteElo "2031"]
[BlackElo "1955"]
[Annotator "NA RC"]
[PlyCount "27"]
[EventDate "2024.03.14"]
[EventType "team-tourn"]
[EventCountry "GER"]
[SourceTitle "playchess.com"]
[Source "ChessBase"]
[SourceQuality "1"]
[TimeControl "40/5400+30:1800+30"]

1. e4 {[%emt 0:00:03]} e5 {[%emt 0:00:06]} 2. Nf3 {[%emt 0:00:04]} Nc6 {[%emt 0:00:04]} 3. Bc4 {[%emt 0:00:06]} Nf6 {[%emt 0:00:09]} 4. d4 {[%emt 0:00:06]} exd4 {[%emt 0:00:11]} 5. O-O {[%emt 0:00:04]} Nxe4 {[%emt 0:00:16]} 6. Re1 {[%emt 0:00:06]} d5 {[%emt 0:00:10]} 7. Bxd5 {[%emt 0:00:04]} Qxd5 {[%emt 0:00:08]} 8. Nc3 {[%emt 0:00:05]} Qd7 {[%emt 0:00:20]} 9. Nxe4 {[%emt 0:00:09]} Be7 {[%emt 0:00:14]} 10. Bg5 {[%emt 0:06:14]} O-O {[%emt 0:00:32]} 11. Bxe7 {[%emt 0:02:21]} Qxe7 {[%emt 0:00:09]} 12. Nxd4 {[%emt 0:12:07]} Bd7 {[%emt 0:00:44]} 13. Nb5 {[%emt 0:21:44]} Rad8 {[%emt 0:04:15]} 14. Qh5 {[%emt 0:26:51]} 1/2-1/2

[Event "Oberliga Wuerttemberg 2023-24"]
[Site "Wuerttemberg"]
[Date "2024.04.14"]
[Round "9.40"]
[White "Schuelke, Tilman"]
[Black "Pohl, Walter"]
[Result "0-1"]
[ECO "D00"]
[WhiteElo "1857"]
[BlackElo "2071"]
[Annotator "TA"]
[PlyCount "160"]
[EventDate "2024.03.14"]
[EventType "team-tourn"]
[EventCountry "GER"]
[SourceTitle "playchess.com"]
[Source "ChessBase"]
[SourceQuality "1"]
[TimeControl "40/5400+30:1800+30"]

{[%evp 9,160,0,29,15,31,19,46,7,38,36,37,41,87,20,15,14,24,0,0,-20,16,7,35,39,57,26,28,0,0,0,0,0,0,-9,-12,-41,-22,-12,20,0,0,-57,-41,-65,-59,-116,-93,-107,-87,-87,-95,-108,-105,-87,-50,-185,-110,-214,-214,-228,-214,-210,-210,-210,-208,-204,-124,-130,-124,-130,-90,-196,-116,-116,-116,-173,-55,-210,-210,-210,-210,-210,-72,-210,-207,-207,-57,-225,-207,-207,-169,-207,-169,-225,-207,-225,-169,-169,0,-225,-225,-225,-207,-225,-225,-225,-225,-239,-238,-267,-267,-267,-267,-680,-680,-767,-767,-867,-267,-267,-267,-267,-267,-267,-267,-267,-257,-5706,-1554,-2289,-384,-29955,-29956,-29959,-29962,-29960,-29961,-29960,-12827,-29981,-29981,-29982,-29983,-29983,-29984,-29984,-29985,-29985,-29986,-29986,-29978,-29996,-29995]} 1. d4 {[%emt 0:00:14]} d5 {[%emt 0:00:31]} 2. c3 {[%emt 0:00:10]} Nc6 {[%emt 0:00:53]} 3. Bf4 {[%emt 0:00:33]} f6 {[%emt 0:00:43]} 4. e3 {[%emt 0:04:23]} e5 {[%emt 0:02:22]} 5. Bg3 {[%emt 0:00:55]} a6 {[%emt 0:05:19]} 6. Nf3 {[%emt 0:01:59]} e4 {[%emt 0:02:48]} 7. Nfd2 {[%emt 0:01:29]} f5 {[%emt 0:00:29]} 8. a3 {[%emt 0:01:31] White is slightly better.} Nf6 {[%emt 0:00:21]} 9. c4 {[%emt 0:03:16]} Be6 {[%emt 0:04:38]} 10. Nc3 {[%emt 0:01:17]} Bd6 {[%emt 0:03:40]} (10... Be7 $14 {deserves consideration.}) 11. Bxd6 {[%emt 0:01:44]} (11. Bh4 $16 {Strongly threatening cxd5.} Be7 12. Bxf6 Bxf6 13. cxd5 Bxd5 14. Nxd5 Qxd5 15. Bc4) 11... Qxd6 $11 {[%emt 0:00:12]} 12. cxd5 {[%emt 0:05:15]} Nxd5 {[%emt 0:01:50]} 13. Nc4 {[%emt 0:05:58]} Qd7 {[%emt 0:01:22]} 14. Nxd5 {[%emt 0:02:34]} Qxd5 {[%emt 0:01:53]} 15. Nd2 {[%emt 0:26:23]} b5 {[%emt 0:19:40]} 16. Rc1 {[%emt 0:03:44]} Qd6 {[%emt 0:02:20]} 17. g3 {[%emt 0:06:54]} O-O {[%emt 0:01:04]} 18. Nb1 {[%emt 0:08:16]} Na5 {[%emt 0:04:56]} 19. Nd2 {[%emt 0:04:53]} Rac8 {[%emt 0:02:49]} 20. b4 {[%emt 0:02:17]} Nb7 {[%emt 0:03:11]} 21. h4 {[%emt 0:01:52]} c6 {[%emt 0:03:19]} 22. Nb3 {[%emt 0:02:29]} Bd5 {[%emt 0:03:08][%cal Oa6a5]} 23. Nc5 {[%emt 0:04:37]} Qe7 {[%emt 0:00:41]} 24. Nxb7 {[%emt 0:02:08]} (24. Nxa6 $2 Ra8 25. Nc5 Rxa3 $19) 24... Qxb7 {[%emt 0:00:07]} 25. Bg2 {[%emt 0:01:17] [#]} (25. a4 $11) 25... a5 $1 {[%emt 0:00:45]} 26. Qd2 {[%emt 0:00:43]} (26. O-O Ra8) 26... axb4 {[%emt 0:00:48]} 27. Qxb4 {[%emt 0:01:01] [#]} (27. axb4 $15 h6 28. O-O) 27... Ra8 $1 $17 {[%emt 0:01:05]} 28. O-O {[%emt 0:01:49]} Ra4 {[%emt 0:00:10]} 29. Qc5 {[%emt 0:00:48]} Rfa8 {[%emt 0:00:22]} 30. Rc3 {[%emt 0:00:51]} Qa7 {[%emt 0:01:50]} 31. Qd6 {[%emt 0:01:01]} Rxa3 {[%emt 0:01:36]} 32. Rc5 {[%emt 0:00:29]} (32. Rxc6 $1 $15 Bxc6 33. Qxc6) 32... Qf7 {[%emt 0:01:09]} ({Better is} 32... b4 $19 {Threatens to win with ...Qb7.} 33. Rxd5 cxd5 34. Qxb4 Qd7) 33. Kh2 {[%emt 0:01:22]} (33. Rxc6 $17 {might work better.} Bxc6 34. Qxc6) 33... Ra2 {[%emt 0:02:46]} 34. Kg1 {[%emt 0:00:52]} b4 {[%emt 0:00:35]} 35. Rxd5 {[%emt 0:00:26]} Qxd5 {[%emt 0:01:00]} 36. Qxb4 {[%emt 0:00:15]} h5 {[%emt 0:05:35]} 37. Qe7 {[%emt 0:00:26]} Ra1 {[%emt 0:00:49] Inhibits Rc1.} 38. Kh2 {[%emt 0:01:34]} Qf7 {[%emt 0:04:31]} 39. Qc5 {[%emt 0:00:46]} Qd7 {[%emt 0:00:31]} 40. Bh3 {[%emt 0:00:42]} (40. Rxa1 $17 Rxa1 41. f3) 40... g6 {[%emt 0:01:44]} (40... R1a5 $19 41. Qc3 g6) 41. Rxa1 {[%emt 0:30:53]} Rxa1 {[%emt 0:30:06][%mdl 4096] Endgame. KQR-KQB} 42. Qe5 {[%emt 0:00:33]} (42. Bf1 $17) 42... Kh7 {[%emt 0:03:22]} (42... Qb7 $19 {aiming for ...Kh7.} 43. Kg2 Qf7) 43. Qf6 $2 {[%emt 0:00:45]} (43. Qxe4 $1 $15 fxe4 44. Bxd7) 43... Rb1 {[%emt 0:01:50]} 44. Kg2 {[%emt 0:00:00]} Rc1 {[%emt 0:00:00]} 45. Qe5 {[%emt 0:00:00]} Rc2 {[%emt 0:00:00]} (45... c5 $19 {is more deadly. White must now prevent ...cxd4.} 46. dxc5 Rc2) 46. Qf4 {[%emt 0:00:00]} (46. Qxe4 $17 {was the only defense.} Qd5 (46... fxe4 47. Bxd7 Kg7 48. g4 $15) 47. Qxd5 cxd5 48. Kf3) 46... c5 $19 {[%emt 0:00:00]} 47. dxc5 {[%emt 0:00:00]} Rxc5 {[%emt 0:00:00]} (47... Kg7 $19 {[%cal Od7d8]} 48. Qe5+ Kf7 (48... Kh7 $2 49. Kg1 $17)) 48. Qg5 $2 {[%emt 0:00:00]} ({Only move:} 48. Qxe4 $15 Rc3 49. Kh2) 48... Rc1 {[%emt 0:00:00]} 49. Qf6 {[%emt 0:05:18]} Rc7 {[%emt 0:00:00]} 50. Qe5 {[%emt 0:00:00]} Ra7 {[%emt 0:00:00]} 51. Qf4 {[%emt 0:00:00]} (51. Kg1 {keeps fighting.}) 51... Qd1 {[%emt 0:00:00]} 52. Qg5 {[%emt 0:00:00]} Qf3+ {[%emt 0:00:00]} 53. Kg1 {[%emt 0:00:00]} Qd1+ $2 {[%emt 0:00:00]} ({Black should play} 53... Rf7 $19 {...Qe2 is the strong threat.} 54. Qd8 Qe2) 54. Kh2 $2 {[%emt 0:00:00]} (54. Kg2 $1 $11) 54... Rf7 {[%emt 0:00:00]} 55. Kg2 {[%emt 0:00:22]} Kg7 {[%emt 0:00:00]} 56. Kh2 {[%emt 0:00:36]} Qf3 {[%emt 0:02:26]} 57. Kg1 {[%emt 0:00:10]} Rf6 {[%emt 0:00:51]} 58. Bg2 {[%emt 0:00:38]} Qg4 {[%emt 0:02:25]} 59. Qxg4 {[%emt 0:00:09]} hxg4 {[%emt 0:00:06] KR-KB} 60. Bf1 {[%emt 0:00:25]} Rc6 {[%emt 0:01:10]} 61. Kg2 $2 {[%emt 0:00:17]} (61. Bb5 Rc5 62. Bd7) 61... Kf6 {[%emt 0:00:35]} 62. Bb5 {[%emt 0:00:29]} Rc8 {[%emt 0:00:52]} 63. Ba6 {[%emt 0:00:06]} Rb8 $2 {[%emt 0:00:09]} (63... Rc5 64. Bf1 Kg7) 64. Bc4 {[%emt 0:00:14]} Rb7 {[%emt 0:01:52]} 65. Ba2 {[%emt 0:00:27]} Ke5 {[%emt 0:00:06]} 66. Bc4 {[%emt 0:00:46]} Kd6 {[%emt 0:00:06] ...Kc5 would now be deadly.} 67. Ba2 {[%emt 0:00:24]} Kc5 {[%emt 0:00:05]} 68. Bg8 $2 {[%emt 0:00:30]} (68. h5 Rg7 (68... gxh5 $2 69. Be6 $19) 69. hxg6) 68... Rg7 {[%emt 0:00:37]} (68... Re7 $142 69. Bb3 Kd6) 69. Ba2 {[%emt 0:00:23]} Kb4 {[%emt 0:00:21] ( -> ...Re7)} 70. Be6 $2 {[%emt 0:00:33]} (70. h5 $19 gxh5 71. Kh2) 70... Re7 {[%emt 0:00:17]} 71. Bd5 {[%emt 0:00:49]} Kc3 {[%emt 0:00:10]} 72. Ba2 {[%emt 0:00:43]} Kd2 {[%emt 0:00:07]} 73. Bc4 {[%emt 0:00:26]} Ke1 {[%emt 0:00:08]} (73... Rc7 $142 74. Be6 Re7 75. Bc8 Ke2 76. h5 gxh5 77. Bxf5 Rf7 78. Bxe4 Rxf2+ 79. Kg1 Kxe3 80. Bd5 Rd2 81. Bb7 h4 82. gxh4 Kf4 83. Kf1 Rh2 84. h5 Kg3 (84... Rxh5 $2 85. Kf2 $19) 85. h6 Rxh6 86. Ke2 Kh2 87. Kd3 Rb6 (87... g3 {leads to mate.} 88. Kd4 Rh5 89. Bf3 g2 90. Bxh5 g1=Q+ 91. Ke4 Qe1+ 92. Kf4 Qc1+ 93. Kf5 Qf1+ 94. Kg5 Kg3 95. Be8 Qf8 96. Bh5 Qc5+ 97. Kf6 Qxh5 98. Ke6 Qc5 99. Kd7 Kf4 100. Ke6 Qc6+ 101. Kf7 Kf5 102. Kg8 Qd7 103. Kf8 Kg6 104. Kg8 Qg7#) 88. Ba8 Rb4 (88... g3 {is a self mate.} 89. Kd4 Ra6 90. Bf3 Ra5 91. Bc6 g2 92. Bxg2 Kxg2 93. Ke4 Kg3 94. Kd3 Ra4 95. Ke3 Rf4 96. Kd2 Kf3 97. Kd3 Kf2 98. Kd2 Rf3 99. Kd1 Ke3 100. Kc2 Ke2 101. Kc1 Kd3 102. Kb2 Kd2 103. Kb1 Kc3 104. Ka2 Rf1 105. Ka3 Ra1#) 89. Kc3 Rf4 (89... g3 90. Kxb4 Kg1 91. Kb3 $11) 90. Kd3 g3 91. Ke3 Rh4 92. Ke2 g2 93. Bxg2 Kxg2 94. Ke3 Ra4 95. Kd3 Kf3 96. Kc3 Ke3 97. Kb3 Rh4 98. Kc3 Ke2 99. Kc2 Rh3 100. Kc1 Kd3 101. Kb2 Kd2 102. Ka1 Kc2 103. Ka2 Rg3 104. Ka1 Ra3#) 74. Bb5 {[%emt 0:00:32]} Rc7 {[%emt 0:03:28] Black mates.} 75. Be8 {[%emt 0:00:14]} Rc2 {[%emt 0:00:02]} 76. Bxg6 {[%emt 0:00:32]} Rxf2+ {[%emt 0:00:05]} 77. Kg1 {[%emt 0:00:52]} Ke2 {[%emt 0:01:02]} 78. h5 {[%emt 0:00:28]} Kf3 {[%emt 0:02:28]} 79. Bxf5 {[%emt 0:00:46]} Rg2+ {[%emt 0:00:39]} 80. Kh1 {[%emt 0:00:46]} Rxg3 {[%emt 0:00:15] Weighted Error Value: White=0.36/Black=0.31.  Loses game:     	White=2     	---        Missed win:     	---       	Black=1      Mistake:       	White=12    	Black=7      Inaccurate:     	White=5     	Black=7      OK:         	White=18    	Black=17     Best:        	White=4     	---        Strong:       	---       	Black=1} 0-1